[Event "DVM U10 2019"]
[Site "Magedburg"]
[Date "2019.12.29"]
[Round "7"]
[White "Hoffmann, Svenja"]
[Black "Braun, Julian"]
[Result "0-1"]
[ECO "C54"]
[WhiteElo "1050"]
[BlackElo "1441"]
[Annotator "NA"]
[PlyCount "86"]
[EventDate "2019.12.27"]
[EventType "team-tourn"]
[EventRounds "7"]
[EventCountry "GER"]
[SourceTitle "playchess.com"]
[Source "ChessBase"]
[SourceQuality "1"]
[TimeControl "3300+5"]

1. e4 {[%emt 0:00:01]} e5 {[%emt 0:00:00]} 2. Nf3 {[%emt 0:00:21]} Nc6 {[%emt 0:00:06]} 3. Bc4 {[%emt 0:00:27]} Bc5 {[%emt 0:00:06]} 4. c3 {[%emt 0:00:09]} Nf6 {[%emt 0:00:08]} 5. d4 {[%emt 0:00:25]} exd4 {[%emt 0:00:06]} 6. e5 {[%emt 0:00:24]} d5 {[%emt 0:00:16]} 7. Bb5 {[%emt 0:00:47]} Ne4 {[%emt 0:00:14]} 8. cxd4 {[%emt 0:00:20]} Bb4+ {[%emt 0:00:25]} 9. Bd2 {[%emt 0:01:01]} Nxd2 {[%emt 0:00:38]} 10. Nbxd2 {[%emt 0:01:17]} O-O {[%emt 0:00:12]} 11. O-O {[%emt 0:01:49]} Bg4 {[%emt 0:00:14]} 12. Nb3 {[%emt 0:00:55]} a5 {[%emt 0:03:39]} 13. a4 {[%emt 0:04:59]} f6 {[%emt 0:05:52]} 14. exf6 {[%emt 0:01:45]} Qxf6 {[%emt 0:01:29]} 15. Be2 {[%emt 0:01:56]} Rae8 {[%emt 0:05:40]} 16. Qd3 {[%emt 0:05:25]} h6 {[%emt 0:03:52]} 17. Bd1 {[%emt 0:05:05]} Na7 {[%emt 0:04:43]} 18. Nc5 {[%emt 0:03:30]} Bf5 {[%emt 0:03:29]} 19. Qb3 {[%emt 0:02:15]} Nc6 {[%emt 0:01:27]} 20. Qxd5+ {[%emt 0:02:24]} Kh8 {[%emt 0:01:18]} 21. Nxb7 {[%emt 0:00:59]} Bd3 {[%emt 0:02:17]} 22. Nc5 {[%emt 0:01:03]} Bxc5 {[%emt 0:03:03]} 23. Qxc5 {[%emt 0:01:38]} Bxf1 {[%emt 0:00:43]} 24. Kxf1 {[%emt 0:00:16]} Qd6 {[%emt 0:02:08]} 25. Qc4 {[%emt 0:01:08]} Nb4 {[%emt 0:01:23]} 26. Rc1 {[%emt 0:00:37]} Qa6 {[%emt 0:01:18]} 27. Ne5 {[%emt 0:01:25]} Qxc4+ {[%emt 0:00:24]} 28. Rxc4 {[%emt 0:00:14]} Kh7 {[%emt 0:01:03]} 29. Rxc7 {[%emt 0:00:53]} Rc8 {[%emt 0:01:34]} 30. Rd7 {[%emt 0:02:17]} Rc1 {[%emt 0:00:32]} 31. Ke2 {[%emt 0:00:21]} Rb1 {[%emt 0:00:20]} 32. d5 {[%emt 0:01:53]} Re8 {[%emt 0:00:56]} 33. f4 {[%emt 0:01:16]} Rxb2+ {[%emt 0:01:10]} 34. Ke3 {[%emt 0:01:05]} Rxg2 {[%emt 0:00:26]} 35. Bf3 {[%emt 0:00:52]} Nc2+ {[%emt 0:00:38]} 36. Ke4 {[%emt 0:00:27]} Rxh2 {[%emt 0:00:17]} 37. Bg4 {[%emt 0:01:07]} Rb8 {[%emt 0:01:49]} 38. Bf5+ {[%emt 0:00:26]} Kg8 {[%emt 0:00:10]} 39. Nc6 {[%emt 0:01:20]} Re8+ {[%emt 0:00:16]} 40. Be6+ {[%emt 0:00:05]} Kh8 {[%emt 0:00:09]} 41. f5 {[%emt 0:00:27]} Rh4+ {[%emt 0:00:13]} 42. Ke5 {[%emt 0:00:13]} Ne3 {[%emt 0:00:24]} 43. Ne7 {[%emt 0:00:17]} Nc4# {[%emt 0:00:11] normal Kd4} 0-1